bitfinex/quotes_SOLUSD_20220116
["timestamp","ask_amount","ask_price","bid_price","bid_amount"]
[1642369868027,3.84708842,146.78,146.67,9.78]
[1642369868257,3.84708842,146.78,146.7,10.2212]
[1642369868454,26.62717845,146.8,146.7,10.4712]
[1642369868856,26.87717845,146.8,146.7,10.4712]
[1642369869255,0.26,146.79,146.7,10.4712]
[1642369869456,10.4825,146.79,146.7,10.4712]
[1642369869856,10.4825,146.79,146.7,34.811]
[1642369870857,10.7325,146.79,146.7,34.811]
[1642369871563,10.2225,146.79,146.7,34.811]
[1642369871760,3.84708842,146.81,146.71,0.26]
[1642369871958,3.84708842,146.81,146.73,10.2192]
[1642369872359,3.84708842,146.81,146.73,10.4692]
[1642369872560,21.58701045,146.82,146.74,35.48163182]
[1642369872959,21.83701045,146.82,146.74,35.73163182]
[1642369873659,17.96515068,146.82,146.74,35.48163182]
[1642369874061,17.96515068,146.82,146.73,10.2192]
[1642369874062,18.03515068,146.82,146.73,10.2192]
[1642369874260,23.96515068,146.82,146.72,23.1648]
[1642369874460,0.07,146.81,146.72,23.1648]
[1642369874661,18.01038317,146.81,146.72,23.1648]
[1642369874859,18.26038317,146.81,146.72,23.1648]
[1642369875261,0.26,146.8,146.73,43.13271812]
[1642369875461,4.13209475,146.8,146.73,43.13271812]
[1642369875659,1.99245535,146.79,146.69,9.78]
[1642369875860,69.98245535,146.79,146.67,34.4227]
[1642369876161,0.07,146.77,146.63,9.78]
[1642369876363,7.515,146.77,146.63,10.03]
[1642369876559,1.70077588,146.76,146.63,10.03]
[1642369876764,13.70607521,146.75,146.64,36.55219486]
[1642369876964,10.2263,146.74,146.64,36.80219486]
[1642369877464,10.4763,146.74,146.64,36.80219486]
[1642369878467,10.4763,146.74,146.64,47.02769486]
[1642369878868,0.25,146.74,146.65,0.26]
[1642369879066,14.07178842,146.76,146.65,0.26]
[1642369879267,14.07178842,146.76,146.65,23.0276]
[1642369879465,14.07178842,146.76,146.65,23.2776]
[1642369880067,14.07008842,146.78,146.66,10.2243]
[1642369880268,14.07008842,146.78,146.67,23.9799]
[1642369880569,15.8408643,146.78,146.65,0.51]
[1642369880769,15.8408643,146.78,146.65,0.25]
[1642369881171,67.67,146.76,146.64,59.63119486]
[1642369881370,10.227,146.73,146.64,59.88119486]
[1642369881774,10.477,146.73,146.64,59.88119486]
[1642369882169,10.477,146.73,146.64,84.82749486]
[1642369882770,0.25,146.73,146.64,84.82749486]
[1642369882970,14.35099522,146.75,146.65,0.26]
[1642369883169,20.32228842,146.75,146.65,0.26]
[1642369883370,14.8060298,146.74,146.64,84.82749486]
[1642369883869,0.26,146.73,146.64,95.05299486]
[1642369885374,0.26,146.73,146.64,101.05299486]
[1642369890381,10.09708842,146.75,146.66,10.224]
[1642369890584,4.09708842,146.75,146.66,10.224]
[1642369890881,4.09708842,146.75,146.67,0.26]
[1642369891181,14.23873625,146.75,146.67,45.76781734]
[1642369891484,14.23873625,146.75,146.67,45.75781734]
[1642369891882,0.26,146.74,146.67,45.75781734]
[1642369892395,14.23873625,146.75,146.67,55.98131734]
[1642369892691,3.84708842,146.76,146.67,64.20531734]
[1642369892890,3.84708842,146.76,146.68,0.26]
[1642369893496,3.84708842,146.76,146.7,10.2214]
[1642369893691,3.84708842,146.76,146.7,18.3414]
[1642369893890,3.84708842,146.76,146.71,0.26]
[1642369894521,3.84708842,146.79,146.71,0.26]
[1642369894718,3.84708842,146.79,146.71,48.38598258]
[1642369894923,3.84708842,146.79,146.71,54.63598258]
[1642369895522,3.84708842,146.81,146.72,10.2183]
[1642369895922,3.84708842,146.81,146.73,0.26]
[1642369896323,3.84708842,146.81,146.72,0.51]
[1642369896728,17.84159043,146.82,146.72,0.51]
[1642369896925,23.84159043,146.82,146.72,0.26]
[1642369897127,17.84159043,146.82,146.72,0.26]
[1642369897326,24.09159043,146.82,146.71,88.43678258]
[1642369897529,24.09159043,146.82,146.74,48.11807333]
[1642369898126,7.72131391,146.81,146.74,48.11807333]
[1642369898326,7.72131391,146.81,146.72,22.6742]
[1642369898526,7.97131391,146.81,146.72,22.9242]
[1642369898726,18.19221391,146.81,146.72,22.9242]
[1642369898928,18.19221391,146.81,146.72,22.6742]
[1642369899327,18.19221391,146.81,146.72,22.9242]
[1642369899528,18.19221391,146.81,146.72,22.6742]
[1642369899730,75.39131391,146.8,146.71,44.31655432]
[1642369899929,67.67,146.77,146.68,33.2969]
[1642369900234,67.67,146.77,146.68,23.5169]
[1642369900429,0.07,146.76,146.63,9.78]
[1642369900630,0.07,146.76,146.65,6.0]
[1642369900831,14.06450201,146.76,146.66,42.51878349]
[1642369901229,14.31450201,146.76,146.66,42.51878349]
[1642369901429,14.07198842,146.75,146.66,42.51878349]
[1642369901633,14.07198842,146.75,146.66,42.76878349]
[1642369901831,14.32198842,146.75,146.66,42.76878349]
[1642369903132,10.4749,146.75,146.66,42.76878349]
[1642369906034,0.26,146.74,146.66,42.76878349]
[1642369906234,10.4749,146.75,146.66,42.76878349]
[1642369906434,0.25,146.75,146.66,42.76878349]
[1642369906636,0.25,146.75,146.67,0.26]
[1642369906839,13.78461167,146.76,146.67,0.26]
[1642369907636,0.26,146.75,146.67,0.26]
[1642369910038,24.00911167,146.76,146.67,0.26]
[1642369910439,24.00911167,146.76,146.66,58.99268349]
[1642369910636,24.00911167,146.76,146.66,42.76878349]
[1642369911537,24.00911167,146.76,146.64,23.0038]
[1642369911739,24.07911167,146.76,146.64,23.0038]
[1642369911952,30.07911167,146.76,146.64,23.0038]
[1642369912544,7.7249346,146.75,146.64,59.81573224]
[1642369912742,10.2278,146.72,146.64,59.81573224]
[1642369912944,2.32590594,146.71,146.64,60.06573224]
[1642369913173,2.32590594,146.71,146.64,23.2538]
[1642369913373,2.57590594,146.71,146.64,23.2538]
[1642369913574,0.26,146.7,146.64,23.2538]
[1642369913774,0.26,146.7,146.64,23.0038]
[1642369913974,0.26,146.7,146.64,23.2538]
[1642369914576,0.26,146.7,146.64,23.0038]
[1642369914776,0.26,146.7,146.61,34.594]
[1642369915176,0.33,146.7,146.61,9.78]
[1642369915480,0.33,146.7,146.58,9.78]
[1642369915675,0.33,146.7,146.59,46.44306608]
[1642369916476,10.5585,146.7,146.59,46.69306608]
[1642369916976,10.8085,146.7,146.59,46.69306608]
[1642369918878,67.67,146.69,146.59,46.69306608]
[1642369919078,13.19065142,146.68,146.59,46.69306608]
[1642369919278,2.66986619,146.65,146.59,46.69306608]
[1642369919681,2.91986619,146.65,146.59,46.69306608]
[1642369921080,10.2313,146.66,146.59,46.69306608]
[1642369921480,10.4813,146.66,146.59,46.69306608]
[1642369922881,0.26,146.65,146.59,46.69306608]
[1642369923081,3.84708842,146.72,146.59,46.69306608]
[1642369923482,3.84708842,146.72,146.59,56.47306608]
[1642369923682,3.84708842,146.72,146.6,0.26]
[1642369923981,12.33266074,146.71,146.6,23.3879]
[1642369924182,22.56086074,146.71,146.6,33.6161]
[1642369924382,22.81086074,146.71,146.6,33.8661]
[1642369924581,0.26,146.7,146.6,33.8661]
[1642369925381,10.4887,146.7,146.6,33.8661]
[1642369925583,10.7387,146.7,146.6,33.8661]
[1642369929286,10.7387,146.7,146.6,39.8661]
[1642369930089,10.4887,146.7,146.6,39.8661]
[1642369930287,16.4887,146.7,146.6,39.8661]
[1642369930487,10.4887,146.7,146.6,39.8661]
[1642369931188,0.26,146.7,146.6,39.8661]
[1642369931388,0.26,146.7,146.61,9.78]
[1642369931588,0.26,146.7,146.63,10.2265]
[1642369931989,0.26,146.7,146.63,10.4765]
[1642369932391,0.26,146.7,146.63,33.3335]
[1642369933190,1.30257044,146.74,146.63,33.3335]
[1642369933191,7.30257044,146.74,146.63,33.3335]
[1642369933393,17.52857044,146.74,146.63,33.3335]
[1642369933598,17.77857044,146.74,146.63,33.3335]
[1642369934197,12.28073918,146.73,146.63,33.3335]
[1642369934398,12.53073918,146.73,146.63,33.3335]
[1642369935401,18.53073918,146.73,146.63,33.3335]
[1642369935596,12.28073918,146.73,146.63,33.3335]
[1642369935798,12.28073918,146.73,146.63,39.3335]
[1642369936898,0.26,146.72,146.63,39.3335]
[1642369937501,0.25,146.73,146.64,0.26]
[1642369937701,0.25,146.73,146.66,10.2244]
[1642369937902,0.25,146.73,146.67,0.26]
[1642369938304,1.55257044,146.74,146.67,0.26]
[1642369938508,12.23964265,146.73,146.67,49.76295182]
[1642369938905,0.26,146.72,146.67,50.01295182]
[1642369940832,1.55257044,146.74,146.67,50.01295182]
[1642369941632,14.25346334,146.73,146.67,50.01295182]
[1642369941832,14.50346334,146.73,146.67,50.01295182]
[1642369942835,0.25,146.73,146.67,50.01295182]
[1642369943134,1.55257044,146.74,146.67,50.01295182]
[1642369944138,1.30257044,146.74,146.67,50.01295182]
[1642369944334,0.26,146.73,146.67,60.23635182]
[1642369944535,3.84708842,146.76,146.67,60.23635182]
[1642369944934,3.84708842,146.76,146.67,66.23635182]
[1642369945135,16.57425009,146.76,146.67,66.23635182]
[1642369945636,12.72716167,146.76,146.67,66.23635182]
[1642369946834,3.84708842,146.79,146.67,66.23635182]
[1642369947038,4.09708842,146.79,146.68,34.0274]
[1642369947240,4.09708842,146.79,146.71,10.2207]
[1642369947439,0.25,146.79,146.71,16.4707]
[1642369947840,12.02856131,146.79,146.71,58.22891398]
[1642369948243,0.26,146.78,146.71,58.22891398]
[1642369951349,0.26,146.78,146.71,52.22891398]
[1642369952546,18.02856131,146.79,146.71,52.22891398]
[1642369953547,12.02856131,146.79,146.71,52.22891398]
[1642369955951,0.26,146.78,146.71,52.22891398]
[1642369959054,0.26,146.78,146.71,58.22891398]
[1642369959254,0.26,146.78,146.71,52.22891398]
[1642369960061,0.26,146.78,146.72,0.26]
[1642369961959,0.26,146.78,146.72,10.4801]
[1642369962360,0.26,146.78,146.72,10.7301]
[1642369963565,0.26,146.78,146.72,10.4701]
[1642369964165,0.26,146.78,146.72,0.25]
[1642369964367,0.26,146.78,146.71,42.00821398]
[1642369965889,0.26,146.78,146.71,52.22901398]
[1642369970403,0.26,146.78,146.71,58.22901398]
[1642369971808,0.26,146.78,146.71,16.4708]
[1642369972302,0.26,146.78,146.71,6.25]
[1642369972705,0.26,146.78,146.71,0.25]
[1642369972905,0.26,146.78,146.7,23.0907]
[1642369974405,1.93409038,146.77,146.7,23.0907]
[1642369974605,4.0819563,146.76,146.7,23.0907]
[1642369976706,6.01604668,146.76,146.7,23.0907]
[1642369977411,4.0819563,146.76,146.7,23.0907]
[1642369977608,4.0819563,146.76,146.7,68.98299703]
[1642369979010,4.0819563,146.76,146.71,0.26]
[1642369982216,1.93409038,146.78,146.71,0.26]
[1642369983316,1.93409038,146.78,146.7,23.0907]
[1642369983520,13.64623162,146.77,146.7,23.0907]
[1642369984750,13.64623162,146.77,146.71,0.26]
[1642369986250,0.26,146.76,146.71,0.26]
[1642369988353,0.26,146.76,146.71,10.4807]
[1642369988550,0.26,146.76,146.72,44.85744625]
[1642369988950,0.26,146.76,146.72,45.10744625]
[1642369989153,1.93409038,146.78,146.72,45.10744625]
[1642369989351,1.93409038,146.78,146.72,51.10744625]
[1642369989852,1.93409038,146.79,146.73,0.26]
[1642369990953,1.93409038,146.8,146.73,0.26]
[1642369991154,1.93409038,146.8,146.73,25.0693]
[1642369991355,1.93409038,146.8,146.73,31.0693]
[1642369991555,1.93409038,146.8,146.73,41.5386]
[1642369992556,1.93409038,146.81,146.73,41.5386]
[1642369992956,1.93409038,146.81,146.74,9.78]
[1642369993155,1.93409038,146.81,146.76,10.2159]
[1642369993353,1.93409038,146.81,146.77,0.26]
[1642369993554,1.93409038,146.81,146.77,45.6274945]
[1642369993957,1.93409038,146.81,146.77,51.8774945]
[1642369994155,1.93409038,146.81,146.77,45.8774945]
[1642369994355,1.93409038,146.81,146.78,10.2157]
[1642369994554,1.93409038,146.81,146.79,3.03219997]
[1642369994759,1.93409038,146.81,146.79,6.06439994]
[1642369994954,1.93409038,146.81,146.79,6.31439994]
[1642369995157,16.19361896,146.85,146.79,6.31439994]
[1642369996961,0.26,146.84,146.8,38.79288415]
[1642369997460,0.26,146.84,146.8,0.25]
[1642369997859,0.26,146.85,146.8,0.25]
[1642369998661,14.10945161,146.85,146.8,0.25]
[1642369998862,14.10945161,146.85,146.78,79.59638588]
[1642369999263,14.10945161,146.85,146.78,39.0195]
[1642370001262,13.84945161,146.85,146.78,39.0195]
[1642370003963,0.26,146.84,146.78,39.0195]
[1642370004164,13.84945161,146.85,146.78,39.0195]
[1642370004364,13.84945161,146.85,146.79,0.26]
[1642370004965,13.84945161,146.85,146.78,39.0195]
[1642370005664,0.26,146.84,146.78,39.0195]
[1642370010071,0.26,146.84,146.78,28.8038]
[1642370011267,0.26,146.84,146.75,1.26963389]
[1642370011468,0.07,146.83,146.72,11.04963389]
[1642370011668,0.07,146.83,146.71,1.92829715]
[1642370011868,1.77077588,146.83,146.71,1.92829715]
[1642370012068,1.77077588,146.83,146.73,72.73741426]
[1642370012573,11.99047588,146.83,146.73,72.73741426]
[1642370012771,11.99047588,146.83,146.73,72.98741426]
[1642370012970,10.2897,146.83,146.73,72.98741426]
[1642370013169,10.5397,146.83,146.74,0.26]
[1642370014370,0.32,146.83,146.74,33.1893]
[1642370014779,0.07,146.83,146.74,33.4393]
[1642370015172,2.00409038,146.83,146.74,33.4393]
[1642370015974,0.26,146.82,146.74,33.4393]
[1642370016374,0.51,146.83,146.74,33.4393]
[1642370016975,2.44409038,146.83,146.74,33.4393]
[1642370017175,2.19409038,146.83,146.74,33.4393]
[1642370017378,2.44409038,146.83,146.74,33.4393]
[1642370018906,2.18409038,146.83,146.74,33.4393]
[1642370019806,0.25,146.83,146.74,33.4393]
[1642370020409,0.26,146.83,146.74,33.4393]
[1642370020611,2.19409038,146.83,146.74,33.4393]
[1642370020810,2.19409038,146.83,146.75,0.26]
[1642370021008,2.44409038,146.83,146.75,0.26]
[1642370022510,1.93409038,146.83,146.75,10.4779]
[1642370022911,1.93409038,146.83,146.75,17.99753389]
[1642370023310,1.93409038,146.83,146.78,10.216]
[1642370023709,15.78354199,146.85,146.78,16.466]
[1642370024009,22.03354199,146.85,146.78,16.466]
[1642370024210,16.03354199,146.85,146.78,16.466]
[1642370024810,16.03354199,146.85,146.78,39.5914]
[1642370025109,16.03354199,146.85,146.78,29.3754]
[1642370027220,16.03354199,146.85,146.78,29.1254]
[1642370027419,16.03354199,146.85,146.75,23.7647]
[1642370027622,16.03354199,146.85,146.75,33.9825]
[1642370027921,0.26,146.84,146.75,33.9825]
[1642370028319,0.26,146.84,146.76,39.61185315]
[1642370028320,2.19409038,146.84,146.76,39.61185315]
[1642370028720,2.44409038,146.84,146.77,23.36]
[1642370028921,2.44409038,146.84,146.77,23.61]
[1642370037733,2.44409038,146.84,146.77,0.25]
[1642370037933,67.67,146.83,146.73,42.6145]
[1642370038134,67.67,146.83,146.73,22.6152]
[1642370038337,67.92,146.83,146.73,22.6152]
[1642370038636,67.92,146.83,146.73,58.82906848]
[1642370039234,1.93409038,146.82,146.73,58.82906848]
[1642370039433,12.40469038,146.82,146.73,58.82906848]
[1642370039634,2.18409038,146.82,146.73,58.82906848]
[1642370040036,1.93409038,146.81,146.73,59.07906848]
[1642370040236,2.011066,146.8,146.73,59.07906848]
[1642370040534,2.261066,146.8,146.73,22.8652]
[1642370041539,2.261066,146.8,146.73,67.97187711]
[1642370041838,0.26,146.79,146.73,67.97187711]
[1642370042337,0.26,146.79,146.73,22.8652]
[1642370042837,0.26,146.79,146.73,0.25]
[1642370043239,0.26,146.79,146.69,8.17829715]
[1642370043440,0.26,146.79,146.7,49.26451475]
[1642370043642,0.26,146.79,146.71,22.8417]
[1642370044042,0.26,146.79,146.71,23.0917]
[1642370044471,0.26,146.79,146.71,33.3124]
[1642370045241,0.25,146.8,146.71,33.3124]
[1642370045440,1.93409038,146.81,146.72,0.26]
[1642370045643,1.93409038,146.81,146.74,10.2181]
[1642370045840,1.93409038,146.81,146.74,21.7811]
[1642370046041,1.93409038,146.81,146.75,0.26]
[1642370046243,1.93409038,146.81,146.75,44.66949937]
[1642370046443,1.93409038,146.83,146.75,50.91949937]
[1642370046643,0.26,146.8,146.75,50.91949937]
[1642370046842,0.26,146.82,146.75,50.91949937]
[1642370047544,2.18409038,146.83,146.76,24.2925]
[1642370047944,0.25,146.83,146.76,30.5425]
[1642370048345,2.18409038,146.84,146.76,30.5425]
[1642370048546,2.18409038,146.84,146.76,40.7598]
[1642370048947,2.18409038,146.84,146.77,0.26]
[1642370049149,1.93409038,146.84,146.76,40.7598]
[1642370049351,1.93409038,146.84,146.77,0.26]
[1642370049548,1.93409038,146.84,146.77,10.4764]
[1642370049747,1.93409038,146.84,146.77,16.7264]
[1642370049949,14.96065519,146.85,146.77,16.7264]
[1642370050149,14.96065519,146.85,146.77,16.4664]
[1642370050348,0.26,146.84,146.77,16.4664]
[1642370051976,0.26,146.84,146.77,10.4664]
[1642370053678,0.26,146.84,146.78,24.9096]
[1642370053882,0.26,146.84,146.78,25.1596]
[1642370058087,15.21065519,146.85,146.78,25.1596]
[1642370058489,14.96065519,146.85,146.78,25.1596]
[1642370058689,15.21065519,146.85,146.79,0.26]
[1642370059287,2.18409038,146.85,146.79,0.26]
[1642370059887,0.25,146.85,146.79,0.26]
[1642370060290,14.71765658,146.86,146.79,0.26]
[1642370060487,0.26,146.85,146.79,0.26]
[1642370061188,14.71765658,146.86,146.79,0.26]
[1642370061490,13.71765658,146.86,146.8,45.9745974]
[1642370061996,12.7835662,146.86,146.8,46.2245974]
[1642370062689,0.26,146.85,146.8,46.2245974]
[1642370063691,0.26,146.85,146.8,0.25]
[1642370063890,0.26,146.85,146.79,0.26]
[1642370069095,12.7835662,146.86,146.79,0.26]
[1642370069295,12.7835662,146.86,146.79,10.4751]
[1642370069694,12.7835662,146.86,146.79,16.7251]
[1642370070797,0.25,146.86,146.79,16.7251]
[1642370070995,0.25,146.86,146.8,35.1546]
[1642370071195,17.09976591,146.89,146.8,35.1546]
[1642370071395,17.09976591,146.89,146.8,41.4046]
[1642370071996,11.99187917,146.88,146.8,35.4046]
[1642370072398,12.24187917,146.88,146.8,35.4046]
[1642370072598,0.26,146.87,146.8,35.4046]
[1642370077205,0.26,146.87,146.8,25.1902]
[1642370083135,0.26,146.87,146.8,0.25]
[1642370083336,0.26,146.87,146.78,22.5378]
[1642370083736,0.26,146.87,146.78,22.7878]
[1642370084337,10.5483,146.87,146.78,22.5378]
[1642370084739,67.67,146.86,146.78,22.5378]
[1642370084937,67.92,146.86,146.78,22.5378]
[1642370085436,0.25,146.86,146.78,22.5378]
[1642370086339,20.0683,146.87,146.78,22.5378]
[1642370086539,87.9883,146.87,146.78,22.5378]
[1642370087439,20.3183,146.87,146.78,22.5378]
[1642370087643,20.3183,146.87,146.78,22.7878]
[1642370088643,0.26,146.86,146.78,22.7878]
[1642370092548,10.04,146.86,146.78,22.7878]
[1642370092953,10.29,146.86,146.78,22.7878]
[1642370093448,20.5089,146.86,146.78,22.7878]
[1642370093849,20.0089,146.86,146.78,22.7878]
[1642370094748,26.0089,146.86,146.78,22.7878]
[1642370095349,93.6789,146.86,146.78,22.7878]
[1642370098550,93.6789,146.86,146.78,0.25]
[1642370098751,0.07,146.85,146.71,9.78]
[1642370099051,10.2217,146.82,146.74,6.0]
[1642370099251,17.5277,146.82,146.7,9.82579097]
[1642370099450,67.67,146.81,146.7,3.82579097]
[1642370099651,3.86863844,146.8,146.7,45.48094616]
[1642370099850,10.11863844,146.8,146.71,24.7536]
[1642370100055,4.11863844,146.8,146.71,24.7536]
[1642370100253,14.34153844,146.8,146.71,24.7536]
[1642370100453,20.34153844,146.8,146.71,24.7536]
[1642370100673,20.34153844,146.8,146.7,35.65515519]
[1642370101453,0.07,146.79,146.7,35.65515519]
[1642370102253,0.07,146.79,146.71,23.4279]
[1642370102655,0.07,146.79,146.71,23.6779]
[1642370104159,0.07,146.79,146.71,23.4279]
[1642370105360,0.07,146.79,146.71,23.6779]
[1642370105560,0.07,146.79,146.68,24.2498]
[1642370105764,1.35102955,146.75,146.69,23.7904]
[1642370105960,9.07802955,146.75,146.69,23.7904]
[1642370106163,9.07802955,146.75,146.66,3.82579097]
[1642370106562,11.99187917,146.74,146.66,3.82579097]
[1642370106963,10.2279,146.73,146.66,3.82579097]
[1642370107163,12.24187917,146.74,146.65,50.28162753]
[1642370107365,12.24187917,146.74,146.65,50.53162753]
[1642370107863,18.24187917,146.74,146.65,50.53162753]
[1642370108266,18.24187917,146.74,146.66,22.6415]
[1642370108466,18.24187917,146.74,146.66,22.8915]
[1642370111075,12.24187917,146.74,146.66,22.8915]
[1642370111573,1.35102955,146.75,146.66,22.8915]
[1642370111774,1.35102955,146.75,146.67,0.26]
[1642370112201,1.35102955,146.75,146.68,1.26963389]
[1642370112502,1.35102955,146.75,146.68,7.51963389]
[1642370112903,1.35102955,146.75,146.7,46.27110988]
[1642370113303,1.35102955,146.75,146.7,46.52110988]
[1642370114404,1.60102955,146.75,146.7,46.52110988]
[1642370114604,1.35102955,146.75,146.7,46.52110988]
[1642370115404,1.35102955,146.75,146.7,47.79074377]
[1642370116504,1.35102955,146.75,146.7,53.79074377]
[1642370116905,1.35102955,146.75,146.7,47.79074377]
[1642370117404,1.35102955,146.75,146.7,53.79074377]
[1642370118305,1.35102955,146.75,146.7,47.79074377]
[1642370120507,1.35102955,146.75,146.7,53.79074377]
[1642370121912,1.35102955,146.75,146.7,64.01224377]
[1642370122111,9.78,146.82,146.7,64.01224377]
[1642370122510,16.03,146.82,146.7,64.01224377]
[1642370122810,15.78,146.82,146.7,64.01224377]
[1642370123010,28.95417719,146.82,146.71,24.493]
[1642370123513,28.95417719,146.82,146.72,1.26963389]
[1642370124011,29.20417719,146.82,146.72,7.51963389]
[1642370124516,6.25,146.82,146.73,25.00573389]
[1642370124710,0.25,146.82,146.73,25.26573389]
[1642370124910,1.74282613,146.83,146.74,1.26963389]
[1642370125310,1.74282613,146.83,146.74,7.51963389]
[1642370125510,1.74282613,146.83,146.75,70.38142317]
[1642370125810,1.49282613,146.83,146.75,71.90105706]
[1642370126011,9.78,146.85,146.76,1.26963389]
[1642370126213,47.93548842,146.89,146.76,1.52963389]
[1642370126414,43.96828842,146.89,146.76,7.77963389]
[1642370126610,43.96828842,146.89,146.77,1.26963389]
[1642370126813,13.88019955,146.88,146.77,1.26963389]
[1642370127012,13.88019955,146.88,146.77,7.51963389]
[1642370127210,14.13019955,146.88,146.77,7.51963389]
[1642370127710,14.13019955,146.88,146.79,10.2154]
[1642370127912,13.88019955,146.88,146.8,50.0111945]
[1642370128309,13.88019955,146.88,146.8,50.2611945]
[1642370128914,13.88019955,146.88,146.8,56.2611945]
[1642370129310,14.13019955,146.88,146.8,50.2611945]
[1642370131615,14.13019955,146.88,146.8,73.3242945]
[1642370131916,20.13019955,146.88,146.8,73.3242945]
[1642370132415,6.25,146.88,146.8,73.3242945]
[1642370132817,0.25,146.88,146.8,73.3242945]
[1642370133017,10.03,146.89,146.8,73.3242945]
[1642370133217,16.03,146.89,146.8,73.3242945]
[1642370133419,29.99630256,146.89,146.8,73.3242945]
[1642370135019,97.66630256,146.89,146.8,73.3242945]
[1642370138720,29.99630256,146.89,146.8,73.3242945]
[1642370140425,29.99630256,146.89,146.8,79.3242945]
[1642370140823,29.99630256,146.89,146.8,73.3242945]
[1642370141827,29.99630256,146.89,146.8,79.3242945]
[1642370142226,29.99630256,146.89,146.8,73.3242945]
[1642370142826,29.74630256,146.89,146.8,79.3242945]
[1642370143026,29.74630256,146.89,146.81,1.26963389]
[1642370143228,13.96630256,146.89,146.81,7.26963389]
[1642370143427,13.96630256,146.89,146.81,7.51963389]
[1642370143829,13.96630256,146.89,146.82,24.8377]
[1642370144231,13.96630256,146.89,146.82,25.0877]
[1642370144433,14.21630256,146.89,146.82,25.0877]
[1642370145757,14.21630256,146.89,146.82,31.0877]
[1642370145955,14.21630256,146.89,146.82,25.0877]
[1642370146356,14.21630256,146.89,146.82,31.0877]
[1642370146755,14.21630256,146.89,146.82,25.0877]
[1642370147959,14.21630256,146.89,146.82,31.0877]
[1642370148458,14.21630256,146.89,146.82,25.0877]
[1642370148861,0.25,146.89,146.82,25.0877]
[1642370149261,1.51695036,146.9,146.82,25.0877]
[1642370149661,1.26695036,146.9,146.82,35.3006]
[1642370149860,23.53702059,146.95,146.83,1.52963389]
[1642370150062,17.60410901,146.95,146.83,1.52963389]
[1642370150262,3.84708842,146.95,146.84,1.26963389]
[1642370150465,3.84708842,146.95,146.85,0.26]
[1642370150666,3.84708842,146.95,146.86,19.9902]
[1642370150863,3.84708842,146.95,146.87,24.7975]
[1642370151062,3.84708842,146.95,146.87,26.06713389]
[1642370151263,3.84708842,146.95,146.88,47.17919268]
[1642370151465,14.76868647,146.97,146.89,0.26]
[1642370151662,14.76868647,146.97,146.89,24.5237]
[1642370151863,15.01868647,146.97,146.89,30.7737]
[1642370152467,15.01868647,146.97,146.89,40.9815]
[1642370153762,15.01868647,146.97,146.89,46.4265]
[1642370155566,14.76868647,146.97,146.89,46.4265]
[1642370155768,1.42860854,146.99,146.89,46.4265]
[1642370156967,14.61243043,146.98,146.89,46.4265]
[1642370157366,14.86243043,146.98,146.9,10.4673]
[1642370157567,14.86243043,146.98,146.9,10.2073]
[1642370157768,14.86243043,146.98,146.9,16.4573]
[1642370157971,14.86243043,146.98,146.9,10.4573]
[1642370158371,14.86243043,146.98,146.9,16.4573]
[1642370158572,14.86243043,146.98,146.9,10.4573]
[1642370159772,14.61243043,146.98,146.9,10.4573]
[1642370160478,20.61243043,146.98,146.9,10.4573]
[1642370160671,14.61243043,146.98,146.9,10.4573]
[1642370160873,14.61243043,146.98,146.9,0.25]
[1642370161074,14.86243043,146.98,146.9,0.25]
[1642370161275,14.86243043,146.98,146.89,24.5237]
[1642370161474,20.86243043,146.98,146.89,24.5237]
[1642370161673,67.67,146.97,146.89,24.5237]
[1642370161874,67.92,146.97,146.89,24.5237]
[1642370162275,0.25,146.97,146.89,24.5237]
[1642370162475,67.92,146.97,146.89,24.5237]
[1642370162677,67.92,146.97,146.89,24.7737]
[1642370162876,0.25,146.97,146.89,0.25]
[1642370163178,14.61243043,146.98,146.87,65.95823776]
[1642370163376,14.86243043,146.98,146.87,72.20823776]
[1642370164277,14.86243043,146.98,146.88,10.2088]
[1642370164502,14.86243043,146.98,146.88,10.4588]